[Event "Late-Titled-Tuesday-Blitz-March-12-2024"]
[Site "Chess.com"]
[Date "2024.03.12"]
[Round "11"]
[White "TigrVShlyape"]
[Black "oskariot"]
[Result "1-0"]
[WhiteElo "2897"]
[BlackElo "2764"]
[TimeControl "180+1"]
[EndTime "16:05:02 PDT"]
[Termination "TigrVShlyape won on time"]

1. d4 {[%clk 0:03:00.9]} 1... Nf6 {[%clk 0:02:59.4]} 2. Bf4 {[%clk 0:02:59.9]}
2... g6 {[%clk 0:02:54.5]} 3. c3 {[%clk 0:02:59.2]} 3... Bg7 {[%clk 0:02:54.6]}
4. Nf3 {[%clk 0:02:59.9]} 4... d6 {[%clk 0:02:55.1]} 5. h3 {[%clk 0:03:00.2]}
5... O-O {[%clk 0:02:55.5]} 6. e3 {[%clk 0:02:57.9]} 6... b6 {[%clk 0:02:53.8]}
7. Nbd2 {[%clk 0:02:56.4]} 7... Bb7 {[%clk 0:02:54.4]} 8. a4 {[%clk 0:02:56.5]}
8... Nbd7 {[%clk 0:02:55]} 9. a5 {[%clk 0:02:55.8]} 9... a6 {[%clk 0:02:55.5]}
10. axb6 {[%clk 0:02:54.9]} 10... cxb6 {[%clk 0:02:56.4]} 11. Be2 {[%clk
0:02:46.8]} 11... b5 {[%clk 0:02:53.9]} 12. O-O {[%clk 0:02:46.7]} 12... Nd5
{[%clk 0:02:54.1]} 13. Bh2 {[%clk 0:02:45.1]} 13... N7b6 {[%clk 0:02:54.6]} 14.
e4 {[%clk 0:02:37]} 14... Nf6 {[%clk 0:02:54.6]} 15. Bd3 {[%clk 0:02:32.4]}
15... Rc8 {[%clk 0:02:54.4]} 16. Re1 {[%clk 0:02:31.2]} 16... e6 {[%clk
0:02:53.6]} 17. Rc1 {[%clk 0:02:22.6]} 17... Na4 {[%clk 0:02:48.8]} 18. Rc2
{[%clk 0:02:19.3]} 18... Re8 {[%clk 0:02:39.9]} 19. Qa1 {[%clk 0:02:17.4]} 19...
e5 {[%clk 0:02:19.2]} 20. b3 {[%clk 0:02:09.1]} 20... Nb6 {[%clk 0:02:19.1]} 21.
d5 {[%clk 0:02:02.6]} 21... Nh5 {[%clk 0:02:12.1]} 22. c4 {[%clk 0:01:47.5]}
22... Nd7 {[%clk 0:01:50.8]} 23. b4 {[%clk 0:01:38.1]} 23... Nf4 {[%clk
0:01:32.7]} 24. Bf1 {[%clk 0:01:37.4]} 24... bxc4 {[%clk 0:01:32.5]} 25. Rxc4
{[%clk 0:01:26.9]} 25... Nxd5 {[%clk 0:01:07.8]} 26. exd5 {[%clk 0:01:25.4]}
26... e4 {[%clk 0:01:05.4]} 27. Nd4 {[%clk 0:01:24.5]} 27... Rxc4 {[%clk
0:00:55]} 28. Nxc4 {[%clk 0:01:22.2]} 28... Bxd5 {[%clk 0:00:46]} 29. Nxd6
{[%clk 0:01:20.2]} 29... Qb6 {[%clk 0:00:46.5]} 30. Nxe8 {[%clk 0:01:04.4]}
30... Bxd4 {[%clk 0:00:45.1]} 31. Qd1 {[%clk 0:01:01.8]} 31... Bxf2+ {[%clk
0:00:44.1]} 32. Kh1 {[%clk 0:01:02]} 32... Bxe1 {[%clk 0:00:32.7]} 33. Qxe1
{[%clk 0:00:55.5]} 33... e3 {[%clk 0:00:31.2]} 34. Nc7 {[%clk 0:00:45.8]} 34...
Bb7 {[%clk 0:00:24.5]} 35. Bf4 {[%clk 0:00:44.9]} 35... g5 {[%clk 0:00:20.7]}
36. Qg3 {[%clk 0:00:44.4]} 36... h6 {[%clk 0:00:19.9]} 37. Bxe3 {[%clk
0:00:43.4]} 37... Qxb4 {[%clk 0:00:20.4]} 38. Kh2 {[%clk 0:00:39.7]} 38... Nf6
{[%clk 0:00:18.7]} 39. Bxg5 {[%clk 0:00:38.6]} 39... Nh5 {[%clk 0:00:15.3]} 40.
Qe5 {[%clk 0:00:24.6]} 40... hxg5 {[%clk 0:00:14.4]} 41. Qxg5+ {[%clk
0:00:24.7]} 41... Kf8 {[%clk 0:00:13.2]} 42. Qd8+ {[%clk 0:00:23.4]} 42... Kg7
{[%clk 0:00:13.4]} 43. Ne8+ {[%clk 0:00:23.8]} 43... Kh6 {[%clk 0:00:11.7]} 44.
Qd6+ {[%clk 0:00:18.8]} 44... Qxd6+ {[%clk 0:00:11.6]} 45. Nxd6 {[%clk
0:00:19.3]} 45... Bd5 {[%clk 0:00:11.4]} 46. Bxa6 {[%clk 0:00:19.3]} 46... Kg7
{[%clk 0:00:09.3]} 47. Nf5+ {[%clk 0:00:18.8]} 47... Kf6 {[%clk 0:00:08.7]} 48.
Ne3 {[%clk 0:00:19.7]} 48... Be6 {[%clk 0:00:08]} 49. g3 {[%clk 0:00:19.9]}
49... Ng7 {[%clk 0:00:08.1]} 50. g4 {[%clk 0:00:17.9]} 50... Ne8 {[%clk
0:00:07.7]} 51. Kg3 {[%clk 0:00:18]} 51... Nd6 {[%clk 0:00:08.1]} 52. Kf4 {[%clk
0:00:18.1]} 52... Kg7 {[%clk 0:00:08.3]} 53. h4 {[%clk 0:00:18.3]} 53... Ne8
{[%clk 0:00:08.4]} 54. Ke5 {[%clk 0:00:17]} 54... Nf6 {[%clk 0:00:07.5]} 55. Be2
{[%clk 0:00:15.3]} 55... Nd7+ {[%clk 0:00:05.6]} 56. Kd6 {[%clk 0:00:14.8]}
56... Nf6 {[%clk 0:00:06.1]} 57. Bf3 {[%clk 0:00:14.5]} 57... Nh7 {[%clk
0:00:05.4]} 58. g5 {[%clk 0:00:12.4]} 58... Ba2 {[%clk 0:00:03.1]} 59. Be4
{[%clk 0:00:11.1]} 1-0

[Event "Late-Titled-Tuesday-Blitz-March-12-2024"]
[Site "Chess.com"]
[Date "2024.03.12"]
[Round "11"]
[White "jcibarra"]
[Black "Sina_Movahed"]
[Result "1-0"]
[WhiteElo "2932"]
[BlackElo "3027"]
[TimeControl "180+1"]
[EndTime "16:05:04 PDT"]
[Termination "jcibarra won by resignation"]

1. e4 {[%clk 0:03:00.9]} 1... c5 {[%clk 0:02:59.5]} 2. Nf3 {[%clk 0:03:01.1]}
2... d6 {[%clk 0:02:59.9]} 3. d4 {[%clk 0:03:00.6]} 3... cxd4 {[%clk 0:03:00.8]}
4. Nxd4 {[%clk 0:03:01.2]} 4... Nf6 {[%clk 0:03:01.5]} 5. Nc3 {[%clk 0:03:01.6]}
5... g6 {[%clk 0:03:02.2]} 6. Be3 {[%clk 0:02:58.5]} 6... a6 {[%clk 0:03:02.4]}
7. f3 {[%clk 0:02:58.6]} 7... h5 {[%clk 0:03:02.4]} 8. Qd2 {[%clk 0:02:51.6]}
8... Nbd7 {[%clk 0:03:02.6]} 9. O-O-O {[%clk 0:02:52]} 9... b5 {[%clk
0:03:02.7]} 10. Bd3 {[%clk 0:02:51.6]} 10... Bb7 {[%clk 0:03:02.7]} 11. h3
{[%clk 0:02:52.3]} 11... h4 {[%clk 0:03:01.9]} 12. Kb1 {[%clk 0:02:51.3]} 12...
Rc8 {[%clk 0:03:01.9]} 13. Rhe1 {[%clk 0:02:41.9]} 13... Bg7 {[%clk 0:03:01.5]}
14. Bg5 {[%clk 0:02:23.2]} 14... Qb6 {[%clk 0:02:50.2]} 15. Bf1 {[%clk
0:02:17.8]} 15... Nc5 {[%clk 0:02:31.5]} 16. Nd5 {[%clk 0:02:11.9]} 16... Bxd5
{[%clk 0:02:28.7]} 17. exd5 {[%clk 0:02:12.2]} 17... O-O {[%clk 0:02:21.6]} 18.
Bh6 {[%clk 0:01:54.4]} 18... Rfe8 {[%clk 0:02:09.3]} 19. Bxg7 {[%clk 0:01:50.3]}
19... Kxg7 {[%clk 0:02:09.7]} 20. Qg5 {[%clk 0:01:50.6]} 20... Kg8 {[%clk
0:01:35.9]} 21. Nf5 {[%clk 0:01:28.7]} 21... Qd8 {[%clk 0:01:36.1]} 22. Nxh4
{[%clk 0:01:23.6]} 22... Kh7 {[%clk 0:01:34.4]} 23. Rd4 {[%clk 0:01:16.9]} 23...
e5 {[%clk 0:01:31.4]} 24. Nf5 {[%clk 0:00:48.2]} 24... Nh5 {[%clk 0:01:19.4]}
25. Qh6+ {[%clk 0:00:48.3]} 25... Kg8 {[%clk 0:01:19.6]} 26. Rh4 {[%clk
0:00:43.1]} 26... Qa5 {[%clk 0:00:39]} 27. b4 {[%clk 0:00:33.5]} 27... Qa4
{[%clk 0:00:26]} 28. c3 {[%clk 0:00:14.7]} 28... Ne4 {[%clk 0:00:20.4]} 29.
Rhxe4 {[%clk 0:00:07.2]} 29... Rxc3 {[%clk 0:00:20.7]} 30. Qd2 {[%clk
0:00:06.8]} 30... Rec8 {[%clk 0:00:19.7]} 31. Ne7+ {[%clk 0:00:06]} 31... Kg7
{[%clk 0:00:18.1]} 32. Nxc8 {[%clk 0:00:06.9]} 32... Rxc8 {[%clk 0:00:16.8]} 33.
Bd3 {[%clk 0:00:07.4]} 33... Nf6 {[%clk 0:00:15.2]} 34. Rh4 {[%clk 0:00:05.7]}
34... Kf8 {[%clk 0:00:12]} 35. Rh8+ {[%clk 0:00:04.4]} 35... Ng8 {[%clk
0:00:12.7]} 36. Rxg8+ {[%clk 0:00:03.2]} 36... Kxg8 {[%clk 0:00:13]} 37. Rc1
{[%clk 0:00:03.6]} 37... Re8 {[%clk 0:00:13.3]} 38. h4 {[%clk 0:00:02.6]} 38...
Qa3 {[%clk 0:00:12.2]} 39. h5 {[%clk 0:00:02.7]} 39... a5 {[%clk 0:00:11]} 40.
hxg6 {[%clk 0:00:02.8]} 40... axb4 {[%clk 0:00:10]} 41. gxf7+ {[%clk 0:00:02.5]}
41... Kxf7 {[%clk 0:00:10.9]} 42. Rh1 {[%clk 0:00:02.6]} 42... Rg8 {[%clk
0:00:08.6]} 43. Rh7+ {[%clk 0:00:02.9]} 43... Ke8 {[%clk 0:00:09.3]} 44. Bf5
{[%clk 0:00:02.3]} 44... b3 {[%clk 0:00:08.3]} 45. Qb2 {[%clk 0:00:02.5]} 45...
bxa2+ {[%clk 0:00:08.2]} 46. Qxa2 {[%clk 0:00:03.1]} 46... Qb4+ {[%clk
0:00:07.9]} 47. Qb2 {[%clk 0:00:03.7]} 47... Qe1+ {[%clk 0:00:08]} 48. Qc1
{[%clk 0:00:04.1]} 48... Qb4+ {[%clk 0:00:08]} 49. Qb2 {[%clk 0:00:04.7]} 49...
Qe1+ {[%clk 0:00:08.1]} 50. Ka2 {[%clk 0:00:05.4]} 50... Qa5+ {[%clk 0:00:08.3]}
51. Qa3 {[%clk 0:00:06]} 51... Qd2+ {[%clk 0:00:08.7]} 52. Ka1 {[%clk
0:00:06.6]} 52... Qd4+ {[%clk 0:00:07.7]} 53. Kb1 {[%clk 0:00:06.3]} 53... Qg1+
{[%clk 0:00:07.1]} 54. Kb2 {[%clk 0:00:06.6]} 54... Rxg2+ {[%clk 0:00:07.8]} 55.
Bc2 {[%clk 0:00:07.3]} 55... Qd4+ {[%clk 0:00:08]} 56. Qc3 {[%clk 0:00:07.9]}
56... Qxc3+ {[%clk 0:00:05.4]} 57. Kxc3 {[%clk 0:00:08.8]} 57... b4+ {[%clk
0:00:05.2]} 58. Kb3 {[%clk 0:00:09.4]} 58... Rd2 {[%clk 0:00:05.5]} 59. Be4
{[%clk 0:00:09.6]} 59... Rd4 {[%clk 0:00:06.4]} 60. Rb7 {[%clk 0:00:08.9]} 60...
Kd8 {[%clk 0:00:06]} 61. Rxb4 {[%clk 0:00:09.3]} 61... Rd2 {[%clk 0:00:06.7]}
62. Kc4 {[%clk 0:00:09.4]} 62... Rd4+ {[%clk 0:00:06.7]} 63. Kb5 {[%clk
0:00:09.5]} 63... Rd2 {[%clk 0:00:06]} 64. Kc6 {[%clk 0:00:09.6]} 1-0

[Event "Late-Titled-Tuesday-Blitz-March-12-2024"]
[Site "Chess.com"]
[Date "2024.03.12"]
[Round "11"]
[White "ameetghasi100"]
[Black "NelsonLinda"]
[Result "1/2-1/2"]
[WhiteElo "2795"]
[BlackElo "2655"]
[TimeControl "180+1"]
[EndTime "16:05:06 PDT"]
[Termination "Game drawn by repetition"]

1. Nf3 {[%clk 0:03:00.3]} 1... c5 {[%clk 0:02:54.9]} 2. g3 {[%clk 0:03:00.6]}
2... b6 {[%clk 0:02:53.6]} 3. Bg2 {[%clk 0:03:01.5]} 3... Bb7 {[%clk 0:02:54.1]}
4. O-O {[%clk 0:03:02.4]} 4... Nf6 {[%clk 0:02:54.5]} 5. d3 {[%clk 0:03:02.8]}
5... g6 {[%clk 0:02:55]} 6. e4 {[%clk 0:03:03.4]} 6... d6 {[%clk 0:02:53.2]} 7.
Nh4 {[%clk 0:03:01]} 7... Qc7 {[%clk 0:02:51.4]} 8. Nc3 {[%clk 0:03:01.1]} 8...
Bg7 {[%clk 0:02:49.1]} 9. f4 {[%clk 0:02:59.2]} 9... O-O {[%clk 0:02:46.5]} 10.
g4 {[%clk 0:02:59.5]} 10... a6 {[%clk 0:02:40.3]} 11. a4 {[%clk 0:02:59.1]}
11... Nc6 {[%clk 0:02:34]} 12. g5 {[%clk 0:02:55.6]} 12... Nd7 {[%clk
0:02:33.3]} 13. Nd5 {[%clk 0:02:55.6]} 13... Qd8 {[%clk 0:02:33.3]} 14. c3
{[%clk 0:02:50.6]} 14... e6 {[%clk 0:02:31]} 15. Ne3 {[%clk 0:02:50.4]} 15... b5
{[%clk 0:02:27.8]} 16. Ng4 {[%clk 0:02:45]} 16... f5 {[%clk 0:02:20.2]} 17. gxf6
{[%clk 0:02:40.9]} 17... Nxf6 {[%clk 0:02:20.2]} 18. Nxf6+ {[%clk 0:02:36]}
18... Qxf6 {[%clk 0:02:21.1]} 19. axb5 {[%clk 0:02:28.3]} 19... axb5 {[%clk
0:02:20.7]} 20. Rxa8 {[%clk 0:02:28.5]} 20... Rxa8 {[%clk 0:02:14.6]} 21. Nf3
{[%clk 0:02:23.8]} 21... b4 {[%clk 0:02:13.4]} 22. Bd2 {[%clk 0:02:22.9]} 22...
Qe7 {[%clk 0:02:08.4]} 23. Qb3 {[%clk 0:02:08.5]} 23... Na5 {[%clk 0:01:55.2]}
24. Qc2 {[%clk 0:02:07.2]} 24... b3 {[%clk 0:01:52.7]} 25. Qb1 {[%clk
0:02:06.9]} 25... d5 {[%clk 0:01:46.5]} 26. e5 {[%clk 0:02:04.1]} 26... Nc6
{[%clk 0:01:38.8]} 27. h4 {[%clk 0:01:58.8]} 27... d4 {[%clk 0:01:36.3]} 28. c4
{[%clk 0:01:58.3]} 28... Nd8 {[%clk 0:01:32.5]} 29. Qd1 {[%clk 0:01:42.6]} 29...
Nf7 {[%clk 0:01:21.8]} 30. Qxb3 {[%clk 0:01:38.6]} 30... Nh6 {[%clk 0:01:21.4]}
31. Ng5 {[%clk 0:01:26.9]} 31... Bxg2 {[%clk 0:01:18.8]} 32. Kxg2 {[%clk
0:01:27.8]} 32... Nf5 {[%clk 0:01:18.3]} 33. Qb6 {[%clk 0:01:25.2]} 33... Re8
{[%clk 0:01:12.8]} 34. Rh1 {[%clk 0:01:19.7]} 34... h6 {[%clk 0:00:59.8]} 35.
Nf3 {[%clk 0:01:08.9]} 35... Bf8 {[%clk 0:00:55.2]} 36. Kf2 {[%clk 0:01:02.6]}
36... Rc8 {[%clk 0:00:51.8]} 37. h5 {[%clk 0:00:52.9]} 37... gxh5 {[%clk
0:00:49.4]} 38. Rxh5 {[%clk 0:00:53.5]} 38... Rc7 {[%clk 0:00:49]} 39. Rxf5
{[%clk 0:00:28.2]} 39... exf5 {[%clk 0:00:47.2]} 40. Qg6+ {[%clk 0:00:28.5]}
40... Qg7 {[%clk 0:00:41.8]} 41. Qxf5 {[%clk 0:00:28.9]} 41... Rb7 {[%clk
0:00:42.2]} 42. Bc1 {[%clk 0:00:29.1]} 42... Rf7 {[%clk 0:00:22.1]} 43. Qe4
{[%clk 0:00:27.8]} 43... Qg4 {[%clk 0:00:20.5]} 44. Qd5 {[%clk 0:00:14]} 44...
Qf5 {[%clk 0:00:18]} 45. e6 {[%clk 0:00:12.4]} 45... Qxd5 {[%clk 0:00:18]} 46.
cxd5 {[%clk 0:00:12.4]} 46... Rf5 {[%clk 0:00:16.8]} 47. Ne5 {[%clk 0:00:12.2]}
47... Bd6 {[%clk 0:00:17]} 48. Nc4 {[%clk 0:00:05.6]} 48... Rxd5 {[%clk
0:00:14.5]} 49. Kf3 {[%clk 0:00:04]} 49... Be7 {[%clk 0:00:13.3]} 50. Ke4 {[%clk
0:00:03.8]} 50... Rh5 {[%clk 0:00:11.5]} 51. f5 {[%clk 0:00:03.9]} 51... Kg7
{[%clk 0:00:11.1]} 52. Bf4 {[%clk 0:00:03.9]} 52... Rh4 {[%clk 0:00:10.3]} 53.
Kf3 {[%clk 0:00:03.6]} 53... Rh3+ {[%clk 0:00:09.8]} 54. Ke4 {[%clk 0:00:03.8]}
54... Bf6 {[%clk 0:00:08.7]} 55. Bd6 {[%clk 0:00:03.5]} 55... Rh4+ {[%clk
0:00:05.9]} 56. Kd5 {[%clk 0:00:03.7]} 56... Rh5 {[%clk 0:00:04.2]} 57. Ke4
{[%clk 0:00:03.7]} 57... Rh4+ {[%clk 0:00:04.8]} 58. Kd5 {[%clk 0:00:03.5]}
58... Rh5 {[%clk 0:00:05.3]} 59. Ke4 {[%clk 0:00:03.5]} 59... Rh4+ {[%clk
0:00:05.7]} 1/2-1/2

[Event "Late-Titled-Tuesday-Blitz-March-12-2024"]
[Site "Chess.com"]
[Date "2024.03.12"]
[Round "11"]
[White "jinxy2009"]
[Black "ural58"]
[Result "1/2-1/2"]
[WhiteElo "2265"]
[BlackElo "2513"]
[TimeControl "180+1"]
[EndTime "16:05:09 PDT"]
[Termination "Game drawn by stalemate"]

1. e4 {[%clk 0:02:53.5]} 1... d5 {[%clk 0:02:33.7]} 2. exd5 {[%clk 0:02:51.5]}
2... Qxd5 {[%clk 0:02:33.3]} 3. Nc3 {[%clk 0:02:51]} 3... Qa5 {[%clk 0:02:33.2]}
4. d4 {[%clk 0:02:49.7]} 4... Nf6 {[%clk 0:02:33.1]} 5. Nf3 {[%clk 0:02:49]}
5... Nc6 {[%clk 0:02:32.7]} 6. d5 {[%clk 0:02:31.7]} 6... Nb4 {[%clk 0:02:31.6]}
7. Bc4 {[%clk 0:02:31.7]} 7... e6 {[%clk 0:02:29.1]} 8. dxe6 {[%clk 0:02:17.5]}
8... Bxe6 {[%clk 0:02:28]} 9. Bxe6 {[%clk 0:02:17.5]} 9... fxe6 {[%clk
0:02:28.2]} 10. O-O {[%clk 0:02:17.8]} 10... Bd6 {[%clk 0:02:28.3]} 11. Re1
{[%clk 0:02:16]} 11... O-O-O {[%clk 0:02:27.4]} 12. Qe2 {[%clk 0:02:15.2]} 12...
Rhe8 {[%clk 0:02:02]} 13. a3 {[%clk 0:02:12.4]} 13... Nbd5 {[%clk 0:01:48.7]}
14. Bd2 {[%clk 0:02:10.1]} 14... Qb6 {[%clk 0:01:32.6]} 15. b4 {[%clk
0:02:02.9]} 15... Bf4 {[%clk 0:01:15.3]} 16. Nxd5 {[%clk 0:01:58]} 16... exd5
{[%clk 0:01:13.2]} 17. Qd3 {[%clk 0:01:56.2]} 17... Bxd2 {[%clk 0:01:11.4]} 18.
Qxd2 {[%clk 0:01:57.1]} 18... Ne4 {[%clk 0:01:10.4]} 19. Qd4 {[%clk 0:01:55]}
19... Qxd4 {[%clk 0:01:09.2]} 20. Nxd4 {[%clk 0:01:55.9]} 20... a6 {[%clk
0:00:58.9]} 21. f3 {[%clk 0:01:53.3]} 21... Nc3 {[%clk 0:00:55.1]} 22. Kf2
{[%clk 0:01:53.1]} 22... b6 {[%clk 0:00:51.5]} 23. Nc6 {[%clk 0:01:45.4]} 23...
Rxe1 {[%clk 0:00:48.3]} 24. Rxe1 {[%clk 0:01:46.3]} 24... Rd6 {[%clk 0:00:43.6]}
25. Nd4 {[%clk 0:01:43]} 25... c5 {[%clk 0:00:39.4]} 26. bxc5 {[%clk 0:01:37.8]}
26... bxc5 {[%clk 0:00:39.5]} 27. Nf5 {[%clk 0:01:38.4]} 27... Rd7 {[%clk
0:00:39.5]} 28. Re8+ {[%clk 0:01:37.5]} 28... Kc7 {[%clk 0:00:39.1]} 29. Ra8
{[%clk 0:01:36.3]} 29... Kb7 {[%clk 0:00:38.7]} 30. Rg8 {[%clk 0:01:36.2]} 30...
g6 {[%clk 0:00:37.7]} 31. Ne3 {[%clk 0:01:29.5]} 31... Nb5 {[%clk 0:00:32.1]}
32. a4 {[%clk 0:01:28.7]} 32... Nd4 {[%clk 0:00:31.7]} 33. c3 {[%clk 0:01:28.1]}
33... Nc6 {[%clk 0:00:25.4]} 34. Nc2 {[%clk 0:01:15.4]} 34... Re7 {[%clk
0:00:23]} 35. h4 {[%clk 0:01:13.6]} 35... Kb6 {[%clk 0:00:20.9]} 36. g4 {[%clk
0:01:10.4]} 36... Ka5 {[%clk 0:00:21.1]} 37. Ra8 {[%clk 0:01:08.5]} 37... d4
{[%clk 0:00:14.7]} 38. cxd4 {[%clk 0:01:01.5]} 38... cxd4 {[%clk 0:00:14.4]} 39.
Ne1 {[%clk 0:00:58.7]} 39... Nb4 {[%clk 0:00:13.3]} 40. h5 {[%clk 0:00:56.6]}
40... Kxa4 {[%clk 0:00:12.5]} 41. h6 {[%clk 0:00:54.8]} 41... a5 {[%clk
0:00:12.1]} 42. Rg8 {[%clk 0:00:54.7]} 42... Nc6 {[%clk 0:00:12.2]} 43. Rg7
{[%clk 0:00:54.7]} 43... Kb5 {[%clk 0:00:12.1]} 44. Nd3 {[%clk 0:00:54.8]} 44...
a4 {[%clk 0:00:12.2]} 45. f4 {[%clk 0:00:48.2]} 45... a3 {[%clk 0:00:11.6]} 46.
Nc1 {[%clk 0:00:44.1]} 46... Kc4 {[%clk 0:00:10.2]} 47. f5 {[%clk 0:00:41.4]}
47... gxf5 {[%clk 0:00:10.2]} 48. gxf5 {[%clk 0:00:42.3]} 48... Re5 {[%clk
0:00:08.6]} 49. f6 {[%clk 0:00:38.8]} 49... Rf5+ {[%clk 0:00:08.8]} 50. Ke2
{[%clk 0:00:39]} 50... Rxf6 {[%clk 0:00:09.3]} 51. Rxh7 {[%clk 0:00:39.6]} 51...
Re6+ {[%clk 0:00:05.5]} 52. Kd2 {[%clk 0:00:39]} 52... Rg6 {[%clk 0:00:05.8]}
53. Rh8 {[%clk 0:00:28.6]} 53... Rg2+ {[%clk 0:00:05.5]} 54. Kd1 {[%clk
0:00:28.4]} 54... Rh2 {[%clk 0:00:05.7]} 55. h7 {[%clk 0:00:24.4]} 55... Kc5
{[%clk 0:00:02.8]} 56. Ra8 {[%clk 0:00:23.3]} 56... Rxh7 {[%clk 0:00:01.7]} 57.
Rxa3 {[%clk 0:00:23.3]} 57... Rh2 {[%clk 0:00:01.6]} 58. Rg3 {[%clk 0:00:19.9]}
58... Kc4 {[%clk 0:00:02]} 59. Nd3 {[%clk 0:00:19.3]} 59... Nb4 {[%clk
0:00:02.2]} 60. Nxb4 {[%clk 0:00:19.2]} 60... Kxb4 {[%clk 0:00:02.9]} 61. Rf3
{[%clk 0:00:18.9]} 61... Kc4 {[%clk 0:00:03.5]} 62. Rh3 {[%clk 0:00:19.2]} 62...
Rb2 {[%clk 0:00:03.8]} 63. Rg3 {[%clk 0:00:19.1]} 63... Ra2 {[%clk 0:00:04.1]}
64. Rh3 {[%clk 0:00:19.3]} 64... Rf2 {[%clk 0:00:04.6]} 65. Rg3 {[%clk
0:00:19.6]} 65... Rf5 {[%clk 0:00:04.9]} 66. Rh3 {[%clk 0:00:19.7]} 66... Rf4
{[%clk 0:00:04.9]} 67. Rg3 {[%clk 0:00:20]} 67... d3 {[%clk 0:00:05.3]} 68. Rg8
{[%clk 0:00:19.2]} 68... Kc3 {[%clk 0:00:05.7]} 69. Rc8+ {[%clk 0:00:19]} 69...
Rc4 {[%clk 0:00:06.6]} 70. Rxc4+ {[%clk 0:00:19]} 70... Kxc4 {[%clk 0:00:07.5]}
71. Kd2 {[%clk 0:00:19.5]} 71... Kd4 {[%clk 0:00:08.2]} 72. Kd1 {[%clk
0:00:19.2]} 72... Ke3 {[%clk 0:00:08.9]} 73. Ke1 {[%clk 0:00:19.6]} 73... d2+
{[%clk 0:00:09.5]} 74. Kd1 {[%clk 0:00:20.2]} 74... Kd3 {[%clk 0:00:10.4]}
1/2-1/2

[Event "Late-Titled-Tuesday-Blitz-March-12-2024"]
[Site "Chess.com"]
[Date "2024.03.12"]
[Round "11"]
[White "Igor_Lysyj"]
[Black "ExtremeLearner"]
[Result "1-0"]
[WhiteElo "2805"]
[BlackElo "2579"]
[TimeControl "180+1"]
[EndTime "16:05:10 PDT"]
[Termination "Igor_Lysyj won by resignation"]

1. d4 {[%clk 0:03:00.1]} 1... Nf6 {[%clk 0:02:59.8]} 2. c4 {[%clk 0:03:00]} 2...
c5 {[%clk 0:03:00.5]} 3. d5 {[%clk 0:02:59.3]} 3... b5 {[%clk 0:03:00.8]} 4.
cxb5 {[%clk 0:02:59.4]} 4... a6 {[%clk 0:03:01.3]} 5. bxa6 {[%clk 0:02:59.8]}
5... g6 {[%clk 0:03:00]} 6. Nc3 {[%clk 0:03:00]} 6... Bxa6 {[%clk 0:02:59.3]} 7.
e4 {[%clk 0:02:58.9]} 7... Bxf1 {[%clk 0:02:59]} 8. Kxf1 {[%clk 0:02:58.9]} 8...
d6 {[%clk 0:02:59.2]} 9. g3 {[%clk 0:02:59.3]} 9... Bg7 {[%clk 0:02:59.6]} 10.
Nf3 {[%clk 0:02:59.1]} 10... O-O {[%clk 0:03:00]} 11. Kg2 {[%clk 0:02:59.5]}
11... Nbd7 {[%clk 0:02:59.6]} 12. a4 {[%clk 0:02:58.8]} 12... Qb6 {[%clk
0:02:58.4]} 13. Ra3 {[%clk 0:02:49.9]} 13... Rfb8 {[%clk 0:02:56.4]} 14. Re1
{[%clk 0:02:48.9]} 14... Ng4 {[%clk 0:02:40.8]} 15. Qe2 {[%clk 0:02:45.5]} 15...
c4 {[%clk 0:02:21.7]} 16. Nb5 {[%clk 0:02:36.2]} 16... Nc5 {[%clk 0:01:33]} 17.
h3 {[%clk 0:02:30.5]} 17... Ne5 {[%clk 0:01:26.9]} 18. Nxe5 {[%clk 0:02:29.8]}
18... Bxe5 {[%clk 0:01:27.8]} 19. Qxc4 {[%clk 0:02:29.7]} 19... Nxa4 {[%clk
0:01:27.9]} 20. Nxd6 {[%clk 0:01:50.5]} 20... Nxb2 {[%clk 0:00:48.4]} 21. Bxb2
{[%clk 0:01:49.1]} 21... Rxa3 {[%clk 0:00:37.9]} 22. Bxa3 {[%clk 0:01:41.5]}
22... exd6 {[%clk 0:00:36.6]} 23. Bc1 {[%clk 0:01:36]} 23... Qd4 {[%clk
0:00:31.2]} 24. Qxd4 {[%clk 0:01:34.4]} 24... Bxd4 {[%clk 0:00:32.1]} 25. Re2
{[%clk 0:01:33.6]} 25... Rb1 {[%clk 0:00:29.2]} 26. Bf4 {[%clk 0:01:32.7]} 26...
Bc5 {[%clk 0:00:25.6]} 27. e5 {[%clk 0:01:23.3]} 27... Rd1 {[%clk 0:00:22.5]}
28. exd6 {[%clk 0:00:56.5]} 28... Rxd5 {[%clk 0:00:21.9]} 29. Bh6 {[%clk
0:00:34.2]} 29... f5 {[%clk 0:00:21.7]} 30. Re8+ {[%clk 0:00:29.6]} 30... Kf7
{[%clk 0:00:21.9]} 31. Re7+ {[%clk 0:00:29.9]} 31... Kg8 {[%clk 0:00:16.1]} 32.
Rg7+ {[%clk 0:00:24.9]} 32... Kh8 {[%clk 0:00:07.9]} 33. Rc7 {[%clk 0:00:24.5]}
33... Kg8 {[%clk 0:00:08]} 34. d7 {[%clk 0:00:20.3]} 34... Be7 {[%clk
0:00:08.5]} 35. h4 {[%clk 0:00:18.5]} 35... Kf7 {[%clk 0:00:06]} 36. Bg5 {[%clk
0:00:17.3]} 36... Ke6 {[%clk 0:00:04.7]} 37. Bxe7 {[%clk 0:00:10.6]} 37... Kxe7
{[%clk 0:00:05.6]} 38. d8=Q+ {[%clk 0:00:10.1]} 38... Kxd8 {[%clk 0:00:06.2]}
39. Rxh7 {[%clk 0:00:10]} 39... Ke8 {[%clk 0:00:06.8]} 40. h5 {[%clk 0:00:08.2]}
40... gxh5 {[%clk 0:00:06.7]} 41. Rxh5 {[%clk 0:00:08.5]} 41... Kf7 {[%clk
0:00:07.1]} 42. Rh6 {[%clk 0:00:09]} 42... Rd3 {[%clk 0:00:05.2]} 43. f4 {[%clk
0:00:08.3]} 43... Ra3 {[%clk 0:00:04.8]} 44. Rb6 {[%clk 0:00:08.1]} 44... Ra1
{[%clk 0:00:04.3]} 45. Kh3 {[%clk 0:00:08]} 45... Rh1+ {[%clk 0:00:04.3]} 46.
Kg2 {[%clk 0:00:08]} 46... Ra1 {[%clk 0:00:05.2]} 47. Rb2 {[%clk 0:00:07.4]}
47... Ra3 {[%clk 0:00:05]} 48. Kh3 {[%clk 0:00:07.7]} 48... Kg6 {[%clk
0:00:05.3]} 49. Kh4 {[%clk 0:00:08]} 49... Ra6 {[%clk 0:00:06]} 50. Rb8 {[%clk
0:00:07]} 50... Rc6 {[%clk 0:00:04.2]} 51. Rg8+ {[%clk 0:00:06.5]} 51... Kh6
{[%clk 0:00:04.7]} 52. Rg5 {[%clk 0:00:06.5]} 52... Rf6 {[%clk 0:00:05.3]} 53.
Kh3 {[%clk 0:00:04.2]} 53... Rf8 {[%clk 0:00:05]} 54. Kg2 {[%clk 0:00:04.4]}
54... Rf6 {[%clk 0:00:04.8]} 55. Kf3 {[%clk 0:00:04.8]} 55... Rf8 {[%clk
0:00:04.1]} 56. Ke3 {[%clk 0:00:05.2]} 56... Rf6 {[%clk 0:00:03.1]} 57. Kd4
{[%clk 0:00:05.6]} 57... Rg6 {[%clk 0:00:03]} 58. Rxg6+ {[%clk 0:00:05.2]} 58...
Kxg6 {[%clk 0:00:03.9]} 59. Ke5 {[%clk 0:00:05.8]} 1-0